{"text_format":"3","workbook":"xlsx","n_sheets":31,"sheets":["modProv","modList00","modList01","modList02","Инструкция","Лог обновления","Титульный","Список МО","Стандарты","Ссылки на публикации","Комментарии","Проверка","AllSheetsInThisWorkbook","TEHSHEET","et_union_hor","et_union_vert","modInfo","modRegion","modReestr","modfrmReestr","modUpdTemplMain","REESTR_ORG","modClassifierValidate","modHyp","modList03","modfrmDateChoose","modComm","modThisWorkbook","REESTR_MO","modfrmReestrMR","modfrmCheckUpdates"],"not_rendered":{"images":21,"macros":1,"external_links":1,"defined_names":143},"read":"whole","date_system":"1900"}

{"sheet":"modProv","index":0,"n_rows":0,"n_cols":0,"rows_kept":0,"hidden":true}

{"sheet":"modList00","index":1,"n_rows":0,"n_cols":0,"rows_kept":0,"hidden":true}

{"sheet":"modList01","index":2,"n_rows":0,"n_cols":0,"rows_kept":0,"hidden":true}

{"sheet":"modList02","index":3,"n_rows":0,"n_cols":0,"rows_kept":0,"hidden":true}

{"sheet":"Инструкция","index":4,"n_rows":102,"n_cols":27,"rows_kept":102,"merged":[[1,1,1,6],[2,1,2,2],[4,1,4,24],[6,4,18,23],[20,5,20,12],[20,15,20,23],[21,5,21,12],[21,15,21,23],[22,15,22,22],[34,4,38,23],[39,4,39,23],[40,4,44,23],[45,4,56,23],[57,4,57,6],[57,7,57,23],[58,4,58,6],[58,7,58,23],[59,4,59,6],[59,7,59,23],[60,7,60,23],[69,4,69,23],[70,4,70,23],[71,4,71,23],[72,4,72,23],[73,4,73,23],[74,4,74,23],[75,4,75,23],[76,4,76,23],[78,4,78,23],[79,4,79,7],[79,8,79,23],[80,4,80,6],[80,7,80,23],[81,4,81,6],[81,7,81,23],[82,4,82,6],[82,7,82,23],[83,7,83,23],[97,4,97,23],[99,5,99,18],[101,5,101,23]]}
[{"$nulls":26}," (требуется обновление)"]
[null,{"$f":"\"Код шаблона: \" & GetCode()","v":"Код шаблона: JKH.OPEN.INFO.REQUEST.WARM"}]
[null,{"$f":"\"Версия \" & GetVersion()","v":"Версия 1.1.1"}]
[]
[null,"Предложение об установлении цен (тарифов) в сфере теплоснабжения и о способах приобретения, стоимости и объемах товаров, необходимых для производства регулируемых товаров и (или) оказания регулируемых услуг"]
[]
[{"$nulls":4},"• На рабочем месте должен быть установлен MS Office 2003 SP3, 2007 SP3, 2010 с полной версией MS Excel\n\n• Макросы во время работы должны быть включены (!)\n\n• Для корректной работы отчёта требуется выбрать низкий уровень безопасности\n(В меню MS Excel 2003: Сервис | Макрос | Безопасность | выбрать пункт «Низкая безопасность» | OK)\n(В меню MS Excel 2007/2010: Параметры Excel | Центр управления безопасностью | Параметры центра управления безопасностью | Параметры макросов | Включить все макросы | ОК)\n\n• Если Вы работаете в табличном процессоре MS Excel 2007 и выше, то можете использовать для работы формат XLSM (Книга Excel с поддержкой макросов). При работе в формате XLSM заметно быстрее происходит сохранение файла, а также уменьшается размер по сравнению с форматом XLS\n\n• Не рекомендуется снимать защиту с листов и каким-либо образом модифицировать защищаемые формулы и расчётные поля, в противном случае, отчёт будет отклонён системой\n\n• При сохранении не следует выбирать формат XLSX (Книга Excel), так как в указанном формате макросы, необходимые для работы отчёта, безвозвратно удаляются"]
{"$rows_empty":13}
[{"$nulls":4},"A"," - необязательные для заполнения",{"$nulls":8},"A"," - с формулами и константами"]
[{"$nulls":4},"A"," - обязательные для заполнения",{"$nulls":8},"A"," - с выбором значений до двойному клику,"]
[{"$nulls":15},"либо с возможностью выбора даты из календаря или ручного ввода"]
{"$rows_empty":11}
[{"$nulls":4},"Если в предложенном Вам списке необходимая организация, МР/МО отсутствуют, обновите реестры с помощью кнопок\n\nВ результате синхронизации с базой данных список организаций (МР/МО) будет заменён актуальным (механизм синхронизации требует подключения к сети Интернет и основан на использовании протокола HTTPS (TCP порт 443))\n\nЕсли после обновления Вам не удалось найти необходимую организацию в списке, обратитесь к ответственному за поддержание реестра Вашего региона. Информация о региональных органах регулирования доступна по ссылке:"]
[]
[]
[]
[]
[{"$nulls":4},"http://www.fstrf.ru/regions/region/showlist"]
[]
[]
[]
[]
[]
[{"$nulls":4},"• При сохранении шаблона осуществляется проверка корректности данных, в том числе на наличие значений в ячейках, обязательных для заполнения\n\n• Если какая-то ячейка не удовлетворяет условию проверки, на лист «Проверка» добавляется гиперссылка на данную ячейку и указывается причина ошибки\n\n• В колонке «Статус» для каждого сообщения возможны 2 значения: ошибка и предупреждение\n\n• При наличии сообщений со статусом «Ошибка» шаблон будет отклонён системой и не будет загружен в хранилище данных, сообщения со статусом «Предупреждение» носят информационный характер, и такой шаблон будет принят системой"]
{"$rows_empty":11}
[{"$nulls":4},"Web-сайт:",null,null,"http://support.eias.ru/index.php?a=add&catid=5"]
[{"$nulls":4},"Дистрибутивы:",null,null,"http://eias.ru/?page=show_distrs"]
[{"$nulls":7},"для устранения ошибок (например, \"Compile error in hidden module\")"]
{"$rows_empty":9}
[{"$nulls":4},"Принципы работы с шаблоном"]
[{"$nulls":4}," Перед началом работы с шаблоном Вам необходимо нажать кнопку \"Приступить к заполнению\", после чего на форме выбора выбрать из выпадающего списка нужный субъект РФ. После выбора субъекта РФ в шаблоне отобразятся листы для заполнения."]
[{"$nulls":4}," На листе «Титульный» нужно заполнить все ячейки голубого и синего цвета.\n Для создания печатной формы нажмите на иконку принтера на листе «Титульный» (левый верхний угол)."]
[{"$nulls":4}," Гиперссылки на листах вводите, не нарушая цвет ячейки (если копируете гиперссылку из браузера, то выполните двойной щелчок левой кнопки мыши по ячейке и только после этого можете вставить скопированный элемент).\n"]
[{"$nulls":4}," При вводе даты на расчетных листах необходимо выбрать дату из календаря (иконка справа от выбранной ячейки), либо ввести дату непосредственно в ячейку в формате - 'ДД.ММ.ГГГГ'."]
[{"$nulls":4}," Если какой-либо из показателей на расчетных листах для Вашей организации отсутствует, введите в поле, обязательное для заполнение, «0» (для числовых показателей) и «-» (для текстовых).\n"]
[{"$nulls":4}," Внимательно следите за информационными сообщениями на расчетных листах."]
[{"$nulls":4}," Все необходимые комментарии по всем формам Вы можете отразить на листе «Комментарии»."]
[]
[{"$nulls":4}," Обосновывающие материалы необходимо загружать с помощью \"ЕИАС Мониторинг\""]
[{"$nulls":4},"Инструкция",{"$nulls":3},"http://eias.ru/files/shablon/manual_loading_through_monitoring.pdf"]
[]
[{"$nulls":4},"E-mail:",null,null,"openinfo@eias.ru"]
[{"$nulls":4},"Web-сайт:",null,null,"http://eias.ru/?page=show_templates"]
{"$rows_empty":14}
[{"$nulls":4},"При наличии подключения к Интернет, можно автоматически проверять наличие доступных обновлений. Выберите способ оповещения о наличии обновлений для отчёта:"]
[]
[{"$nulls":5},"проверять доступные обновления (рекомендуется)",{"$nulls":20},"y"]
[]
[{"$nulls":5},"никогда не проверять наличие обновлений (не рекомендуется)"]

{"sheet":"Лог обновления","index":5,"n_rows":26,"n_cols":3,"rows_kept":26,"hidden":true}
["Дата/Время","Сообщение","Статус"]
[]
["2014-01-15T10:38:06","Проверка доступных обновлений...","Информация"]
["2014-01-15T10:38:06","Версия шаблона 1.0.2 актуальна, обновление не требуется","Информация"]
["2014-05-05T17:00:14","Проверка доступных обновлений...","Информация"]
["2014-05-05T17:00:14","Доступно обновление до версии 1.0.3","Информация"]
["2014-05-05T17:00:15","Описание изменений: Версия 1.0.3 (для шаблонов версии 1.0.2 и выше)\n1. Корректировка проверки при сохранении.","Информация"]
["2014-05-05T17:00:15","Размер файла обновления: 271360 байт","Информация"]
["2014-05-05T17:00:19","Подготовка к обновлению...","Информация"]
["2014-05-05T17:00:25","Сохранение файла резервной копии: C:\\Users\\borinskih\\Desktop\\11.BKP.xlsm","Информация"]
["2014-05-05T17:00:26","Резервная копия создана: C:\\Users\\borinskih\\Desktop\\11.BKP.xlsm","Информация"]
["2014-05-05T17:00:26","Создание книги для установки обновлений...","Информация"]
["2014-05-05T17:00:27","Файл обновления загружен: C:\\Users\\borinskih\\Desktop\\UPDATE.JKH.OPEN.INFO.REQUEST.WARM.TO.1.0.3.79.xls","Информация"]
["2014-05-05T17:00:31","Обновление завершилось удачно! Шаблон JKH.OPEN.INFO.REQUEST.WARM.xlsm сохранен под именем 'JKH.OPEN.INFO.REQUEST.WARM(v1.0.3).xlsm'","Информация"]
["2015-05-05T10:38:58","Проверка доступных обновлений...","Информация"]
["2015-05-05T10:38:58","Доступно обновление до версии 1.1.1","Информация"]
["2015-05-05T10:38:58","Описание изменений: ! Обновление доступно для шаблонов версии 1.0.2 и выше\n\nдо версии 1.1.1\n1. скорректировано заполнение поля 'Условный порядковый номер' на листе 'Список МО';\n2. исправлены формулировки на листе 'Стандарты' согласно нормативно-правовым актам;\n3. добавлена разбивка по компонентам для вида тарифа 'тариф на горячую воду, поставляемую с использованием открытых систем теплоснабжения (горячего водоснабжения)';\n\nдо версии 1.0.3\n1. скорректирована проверка при сохранении","Информация"]
["2015-05-05T10:38:59","Размер файла обновления: 640000 байт","Информация"]
["2015-05-05T10:39:00","Подготовка к обновлению...","Информация"]
["2015-05-05T10:39:05","Сохранение файла резервной копии: C:\\Users\\borinskih\\Documents\\Стандарты РИ\\Шаблоны станд раскр инф 06 2014\\11.BKP.xlsm","Информация"]
["2015-05-05T10:39:06","Резервная копия создана: C:\\Users\\borinskih\\Documents\\Стандарты РИ\\Шаблоны станд раскр инф 06 2014\\11.BKP.xlsm","Информация"]
["2015-05-05T10:39:06","Создание книги для установки обновлений...","Информация"]
["2015-05-05T10:39:07","Файл обновления загружен: C:\\Users\\borinskih\\Documents\\Стандарты РИ\\Шаблоны станд раскр инф 06 2014\\UPDATE.JKH.OPEN.INFO.REQUEST.WARM.TO.1.1.1.83.xls","Информация"]
["2015-05-05T10:39:11","Обновление завершилось удачно! Шаблон JKH.OPEN.INFO.REQUEST.WARM(v1.0.3).xlsm сохранен под именем 'JKH.OPEN.INFO.REQUEST.WARM(v1.0.3)_to_(v1.1.1).xlsm'","Информация"]
["2016-05-04T08:54:50","Проверка доступных обновлений...","Информация"]
["2016-05-04T08:55:04","Версия шаблона 1.1.1 актуальна, обновление не требуется","Информация"]

{"sheet":"Титульный","index":6,"n_rows":56,"n_cols":6,"rows_kept":56,"merged":[[4,4,4,5]]}
[{"$nulls":5},27568933]
[]
[]
[{"$nulls":5},{"$f":"version","v":"Версия 1.1.1"}]
[{"$nulls":4},"Предложение об установлении цен (тарифов) в сфере теплоснабжения и о способах приобретения, стоимости и объемах товаров, необходимых для производства регулируемых товаров и (или) оказания регулируемых услуг"]
[]
[{"$nulls":4},"Субъект РФ","Республика Хакасия"]
[]
[{"$nulls":4},"Публикация","На сайте регулирующего органа"]
[]
[{"$nulls":4},"По желанию организации информация раскрыта в дополнительных источниках публикации?","да"]
[]
["нет",{"$nulls":3},"Указывать разбивку НВВ по полугодиям","нет"]
[]
[{"$nulls":5},"Период регулирования"]
["01.07.2017",{"$nulls":3},"Начало очередного периода регулирования","01.07.2017"]
["31.12.2017",{"$nulls":3},"Окончание очередного периода регулирования","31.12.2017"]
[]
[{"$nulls":4},"Является ли данное юридическое лицо подразделением (филиалом) другой организации","да"]
[]
[{"$nulls":4},"Наименование организации","ОП ЗАО \"Байкалэнерго\" - \"Саяногорские тепловые сети\""]
[{"$nulls":4},"Наименование филиала"]
[{"$nulls":4},"ИНН","3808108339"]
[{"$nulls":4},"КПП","381201001"]
[]
[{"$nulls":4},"Вид деятельности","производство (некомбинированная выработка)+передача+сбыт"]
[]
[{"$nulls":4},"Режим налогообложения","общий"]
[]
[{"$nulls":4},"Организация выполняет/планирует к выполнению инвестиционную программу","нет"]
[]
["тариф на тепловую энергию (мощность)",{"$nulls":3},"Тариф","тариф на тепловую энергию (мощность)"]
[]
[{"$nulls":4},"Наличие двухставочного тарифа","нет"]
[]
[{"$nulls":4},"НДС (Отметка об учтенном НДС)","тариф указан без НДС для плательщиков НДС"]
[]
[{"$nulls":4},"Тариф на теплоноситель установлен с разбивкой по поставщикам"]
[]
[{"$nulls":5},"Адрес регулируемой организации"]
[{"$nulls":4},"Юридический адрес","г. Саяногорск ул. Индустриальная 19"]
[{"$nulls":4},"Почтовый адрес","г. Саяногорск ул. Индустриальная 19"]
[]
[{"$nulls":5},"Руководитель"]
[{"$nulls":4},"Фамилия, имя, отчество","Алферов Михаил Алексеевич"]
[{"$nulls":4},"(код) номер телефона","39042 6-31-84"]
[]
[{"$nulls":5},"Главный бухгалтер"]
[{"$nulls":4},"Фамилия, имя, отчество","нет"]
[{"$nulls":4},"(код) номер телефона","нет"]
[]
[{"$nulls":5},"Должностное лицо, ответственное за составление формы"]
[{"$nulls":4},"Фамилия, имя, отчество","Табакаева Лилия Сергеевна"]
[{"$nulls":4},"Должность","Начальник ПЭО"]
[{"$nulls":4},"(код) номер телефона","39042 2-42-48"]
[{"$nulls":4},"e-mail","tabakaeva_ls@nitec.irkutskenergo.ru"]

{"sheet":"Список МО","index":7,"n_rows":16,"n_cols":8,"rows_kept":16,"merged":[[3,3,3,7],[4,3,4,7],[6,5,6,7],[7,5,7,7],[8,5,8,7],[13,3,14,3],[13,4,14,4]]}
[]
[]
[]
[{"$nulls":3},"Дифференциация тарифа"]
[{"$nulls":3},{"$f":"IF(org=0,\"Не определено\",org)","v":"ОП ЗАО \"Байкалэнерго\" - \"Саяногорские тепловые сети\""}]
[]
[{"$nulls":5},"Система теплоснабжения"]
[{"$nulls":4},"Условный порядковый номер",1]
[{"$nulls":4},"Описание","открытая"]
[]
[{"$nulls":3},"№ п/п","Муниципальный район","№ п/п","Муниципальное образование","ОКТМО"]
[{"$nulls":3},"1","2","3","4","5"]
[{"$nulls":3},0,null,0]
[null,null,"О",1,"город Саяногорск",1,"город Саяногорск","95708000"]
[{"$nulls":6},"Добавить МО"]
[{"$nulls":4},"Добавить МР"]

{"sheet":"Стандарты","index":8,"n_rows":38,"n_cols":8,"rows_kept":38,"merged":[[4,3,4,7],[5,3,5,7],[15,0,20,0],[37,4,37,7]]}
[]
[]
[]
[]
[{"$nulls":3},"Предложение об установлении цен (тарифов) в сфере теплоснабжения и о способах приобретения, стоимости и объемах товаров, необходимых для производства регулируемых товаров и (или) оказания регулируемых услуг"]
[{"$nulls":3},{"$f":"IF(org=0,\"Не определено\",org)","v":"ОП ЗАО \"Байкалэнерго\" - \"Саяногорские тепловые сети\""}]
[]
[{"$nulls":3},"№ п/п","Информация, подлежащая раскрытию","Значение","Ссылки на документы","Примечание"]
[{"$nulls":3},"1","2","3","4","5"]
[{"$nulls":3},"1.","Информация о предложении регулируемой организации об установлении тарифов в сфере теплоснабжения на очередной период регулирования",null,null,0]
[{"$nulls":3},"1.1.","Копия утвержденной в установленном порядке инвестиционной программы (проекта инвестиционной программы)"]
[{"$nulls":3},"1.2.","Метод регулирования",null,null,0]
["1.2.1","О",null,{"$f":"A13&\".\"","v":"1.2.1."},"С 01.07.2017 по 31.12.2017","метод индексации установленных тарифов"]
[{"$nulls":4},"Добавить метод"]
[{"$nulls":3},"1.3.",{"$f":"\"Расчетная величина цен (тарифов)\"&IF(group_rates<>tariff_GVS,IF(group_rates=\"\",\"\",IF(double_rate_tariff=\"да\",\"\",\", \"&unit_tariff_single_rate)),\"\")","v":"Расчетная величина цен (тарифов),  руб/Гкал"},null,null,0]
["1.3.1",null,null,{"$f":"A16&\".\"","v":"1.3.1."},"С 01.07.2017 по 31.12.2017",{"$f":"[1]смета!$H$80","v":{"v":2571.2849523125055,"d":"2,571.28"}}]
[{"$nulls":3},{"$f":"D16&IF(group_rates=tariff_GVS,\"1.\",\"\")","v":"1.3.1."},{"$f":"IF(group_rates=\"\",\"\",IF(group_rates=TEHSHEET!$S$10,TEHSHEET!$R$10,group_rates)) & IF(double_rate_tariff=\"да\",,\", \"&unit_tariff_single_rate)","v":"тариф на тепловую энергию (мощность),  руб/Гкал"}]
[{"$nulls":3},{"$f":"D17&\"1.\"","v":"1.3.1.1."},{"$f":"name_dblRate_1 & \", \" & unit_tariff_double_rate_p","v":"мощность,  руб/Гкал"}]
[{"$nulls":3},{"$f":"D17&\"2.\"","v":"1.3.1.2."},{"$f":"name_dblRate_2 & \", \" & unit_tariff_double_rate_c","v":"содержание, тыс руб/Гкал/час в месяц"}]
[null,"f",null,{"$f":"D16&\"2.\"","v":"1.3.1.2."},{"$f":"IF(group_rates=\"\",\"\",IF(group_rates=TEHSHEET!$S$10,TEHSHEET!$R$11,\"\"))&\", \"&TEHSHEET!$T$5","v":", руб/м3"}]
[{"$nulls":4},"Добавить поставщика"]
[{"$nulls":4},{"$f":"\"Расчетная величина цен (тарифов)\"&IF(group_rates<>tariff_GVS,IF(group_rates=\"\",\"\",IF(double_rate_tariff=\"да\",\"\",\", \"&unit_tariff_single_rate)),\"\")","v":"Расчетная величина цен (тарифов),  руб/Гкал"}]
[{"$nulls":3},"1.4.","Срок действия цен (тарифов)",{"$f":"\"с \"&periodStart & \" по \" & periodEnd & \" гг.\"","v":"с 01.07.2017 по 31.12.2017 гг."}]
[{"$nulls":3},"1.5.","Долгосрочные параметры регулирования (в случае если их установление предусмотрено выбранным методом регулирования)*"]
[{"$nulls":3},"1.6.",{"$f":"\"необходимая валовая выручка на соответствующий период, в том числе с разбивкой по \" & IF(flag_NVV=\"да\",\"полугодиям, тыс руб:\", \"годам, тыс руб:\")","v":"необходимая валовая выручка на соответствующий период, в том числе с разбивкой по годам, тыс руб:"},{"$f":"SUM(F26:F27)","v":{"v":926112.3005706616,"d":"926,112.30"}}]
["1.6.1","О",null,{"$f":"A26&\".\"","v":"1.6.1."},"С 01.07.2017 по 31.12.2017",{"$f":"[1]смета!$H$79","v":{"v":926112.3005706616,"d":"926,112.30"}}]
[{"$nulls":4},"Добавить НВВ"]
[{"$nulls":3},"1.7.",{"$f":"\"Годовой объем полезного отпуска тепловой энергии (теплоносителя), \"&unit_tariff_useful_output","v":"Годовой объем полезного отпуска тепловой энергии (теплоносителя), тыс Гкал"},null,null,0]
["1.7.1","О",null,{"$f":"A29&\".\"","v":"1.7.1."},"С 01.07.2017 по 31.12.2017",{"$f":"[1]смета!$H$7","v":{"v":360174.9,"d":"360,174.90"}}]
[{"$nulls":4},"Добавить метод"]
[{"$nulls":3},"1.8.","Расчетная величина цен (тарифов)",{"$f":"F26/F29*1000","v":{"v":2571.2849523125055,"d":"2,571.28"}}]
[{"$nulls":3},"2.","Информация о способах приобретения, стоимости и об объемах товаров, необходимых для производства регулируемых товаров и(или) оказания регулируемых услуг регулируемой организацией",null,null,0]
[{"$nulls":3},"2.1.","Сведения о правовых актах, регламентирующих правила закупки (положение о закупках) в регулируемой организации","Решение акционера которому принадлежат все голосующие акции ЗАО Байкалэнерго и ОАО Иркутскэнерго от 23.03.2012"]
[{"$nulls":3},"2.2.","Сведения о месте размещения положения о закупках регулируемой организации","www.zakupki.gov.ru"]
[null,3,null,"2.3.","Сведения о планировании закупочных процедур и результатах их проведения","www.zakupki.gov.ru"]
[{"$nulls":4},"Добавить сведения"]
[{"$nulls":4},"ФЗ 190 ст. 9 2. До 1 января 2016 года осуществляется поэтапный переход к регулированию тарифов на тепловую энергию (мощность), тарифов на услуги в сфере теплоснабжения, теплоноситель на основе долгосрочных параметров государственного регулирования цен (тарифов) в сфере теплоснабжения (с применением метода обеспечения доходности инвестированного капитала, или метода индексации установленных тарифов, или метода сравнения аналогов)."]
[{"$nulls":3},"*","ФЗ 190 ст. 9 2. До 1 января 2016 года осуществляется поэтапный переход к регулированию тарифов на тепловую энергию (мощность), тарифов на услуги по передаче тепловой энергии, теплоноситель на основе долгосрочных параметров государственного регулирования цен (тарифов) в сфере теплоснабжения (с применением метода обеспечения доходности инвестированного капитала, или метода индексации установленных тарифов, или метода сравнения аналогов)."]

{"sheet":"Ссылки на публикации","index":9,"n_rows":15,"n_cols":8,"rows_kept":15,"merged":[[4,3,4,7],[5,3,5,7],[10,0,11,0],[10,4,10,7],[12,0,13,0],[12,4,12,7]]}
[]
[]
[]
[]
[{"$nulls":3},"Ссылки на публикации"]
[{"$nulls":3},{"$f":"IF(org=0,\"Не определено\",org)","v":"ОП ЗАО \"Байкалэнерго\" - \"Саяногорские тепловые сети\""}]
[]
[]
[{"$nulls":3},"№ п/п","Содержание","Наименование сайта","Дата размещения информации","Адрес страницы сайта в сети \"Интернет\", на которой размещена информация"]
[{"$nulls":3},"1","2","3","4","5"]
["1",null,null,{"$f":"A11","v":"1"},"Информация о способах приобретения, стоимости и объемах товаров, необходимых для производства регулируемых товаров и (или) оказания регулируемых услуг регулируемой организацией, содержит сведения о правовых актах, регламентирующих правила закупки (положение о закупках) в регулируемой организации, а также о месте размещения положения о закупках регулируемой организации, информации о планировании конкурсных процедур и результатах их проведения (п.26 Постановления Правительства Российской Федерации от 05 июля 2013 г. N 570 \"О стандартах раскрытия информации теплоснабжающими организациями, теплосетевыми организациями и органами регулирования\")"]
[{"$nulls":3},{"$f":"A11&\".1\"","v":"1.1"},"Сайт организации в сети Интернет","Иркутскэнерго","04.05.2016","http://www.irkutskenergo.ru/"]
["2",null,null,{"$f":"A13","v":"2"},"Информация о предложении регулируемой организации об установлении тарифов в сфере теплоснабжения на очередной расчетный период регулирования (п.27 Постановления Правительства Российской Федерации от 05 июля 2013 г. N 570 \"О стандартах раскрытия информации теплоснабжающими организациями, теплосетевыми организациями и органами регулирования\")"]
[{"$nulls":3},{"$f":"A13&\".1\"","v":"2.1"},"Сайт организации в сети Интернет","Иркутскэнерго","04.05.2016","http://www.irkutskenergo.ru/"]
[{"$nulls":4},"Добавить"]

{"sheet":"Комментарии","index":10,"n_rows":13,"n_cols":5,"rows_kept":13,"merged":[[6,3,6,4],[7,3,7,4]]}
[]
[]
[]
[]
[]
[]
[{"$nulls":3},"Комментарии"]
[{"$nulls":3},{"$f":"IF(org=0,\"Не определено\",org)","v":"ОП ЗАО \"Байкалэнерго\" - \"Саяногорские тепловые сети\""}]
[]
[{"$nulls":3},"№ п/п","Комментарий"]
[{"$nulls":3},"1","2"]
[{"$nulls":3},0]
[{"$nulls":4},"Добавить"]

{"sheet":"Проверка","index":11,"n_rows":23,"n_cols":4,"rows_kept":23,"merged":[[1,1,1,3]]}
[]
[null,"Результат проверки"]
[]
[null,"Ссылка","Причина","Статус"]
[null,"Титульный!F22","Не указано наименование филиала на листе 'Титульный'!","Ошибка"]
[null,"Стандарты!F24","Не указано значение!","Ошибка"]
[null,"Стандарты!G24","Не указано значение!","Ошибка"]
[null,"Стандарты!G35","Не указано значение!","Ошибка"]
[null,"Стандарты!H13","Не указано значение!","Предупреждение"]
[null,"Стандарты!H16","Не указано значение!","Предупреждение"]
[null,"Стандарты!H23","Не указано значение!","Предупреждение"]
[null,"Стандарты!H24","Не указано значение!","Предупреждение"]
[null,"Стандарты!H25","Не указано значение!","Предупреждение"]
[null,"Стандарты!H26","Не указано значение!","Предупреждение"]
[null,"Стандарты!H29","Не указано значение!","Предупреждение"]
[null,"Стандарты!H31","Не указано значение!","Предупреждение"]
[null,"Стандарты!G33","Не указано значение!","Предупреждение"]
[null,"Стандарты!H33","Не указано значение!","Предупреждение"]
[null,"Стандарты!G34","Не указано значение!","Предупреждение"]
[null,"Стандарты!H34","Не указано значение!","Предупреждение"]
[null,"Стандарты!H35","Не указано значение!","Предупреждение"]
[null,"Ссылки на публикации!G12","Дата не может превышать текущую дату!","Ошибка"]
[null,"Ссылки на публикации!G14","Дата не может превышать текущую дату!","Ошибка"]

{"sheet":"AllSheetsInThisWorkbook","index":12,"n_rows":24,"n_cols":2,"rows_kept":24,"hidden":true}
["Расчетные листы","Скрытые листы"]
["Инструкция","AllSheetsInThisWorkbook"]
["Лог обновления","TEHSHEET"]
["Титульный","et_union_hor"]
["Список МО","et_union_vert"]
["Стандарты","modInfo"]
["Ссылки на публикации","modRegion"]
["Комментарии","modReestr"]
["Проверка","modfrmReestr"]
[null,"modUpdTemplMain"]
[null,"REESTR_ORG"]
[null,"modClassifierValidate"]
[null,"modProv"]
[null,"modHyp"]
[null,"modList00"]
[null,"modList01"]
[null,"modList02"]
[null,"modList03"]
[null,"modfrmDateChoose"]
[null,"modComm"]
[null,"modThisWorkbook"]
[null,"REESTR_MO"]
[null,"modfrmReestrMR"]
[null,"modfrmCheckUpdates"]

{"sheet":"TEHSHEET","index":13,"n_rows":85,"n_cols":23,"rows_kept":85,"hidden":true,"merged":[[0,19,1,19],[0,20,0,21],[0,22,1,22]]}
["REGION",null,"year_list","logical","Месяц\n(MONTH)","Квартал\n(QUARTER)","Месяц\n(kind_of_publication)","НДС\n/kind_of_NDS/","Номер СЦХВ(СЦВО)\n/SKI_number/","Единица измерения объема оказываемых услуг ГВС\n/kind_of_unit_GVS/","Метод регулирования\n/kind_of_control_method/",null,null,"версия шаблона\n (DocProp_Version)","6.0",{"$nulls":3},"виды групп товаров\n/kind_group_rates/","Одноставочный","Двухставочный",null,"Полезный отпуск"]
["Алтайский край",null,2013,"да","январь","I квартал","На официальном сайте организации","общий","1","тыс.куб.м/сутки","метод экономически обоснованных расходов (затрат)",null,null,"код шаблона\n(DocProp_TemplateCode)","JKH.OPEN.INFO.QUARTER.GVS",{"$nulls":5},{"$f":"IF(group_rates=$S$10,\"ставка за тепловую энергию\",\"мощность\")","v":"мощность"},{"$f":"IF(group_rates=$S$10,\"ставка за содержание тепловой мощности\",\"содержание\")","v":"содержание"}]
["Амурская область",null,2014,"нет","февраль","II квартал","На сайте регулирующего органа","общий с учетом освобождения от уплаты НДС","2","Гкал/час","метод индексации установленных тарифов",null,null,"сфера\n(TSphere)","ГВС",{"$nulls":3},"единица измерения для листа Стандарты\n/unit_tariff/"," руб/Гкал"," руб/Гкал","тыс руб/Гкал/час в месяц","тыс Гкал"]
["Архангельская область",null,2015,null,"март","III квартал",null,"специальный (упрощенная система налогообложения, система налогообложения для сельскохозяйственных товаропроизводителей)","3","куб.м/час","метод обеспечения доходности инвестированного капитала",null,null,"сфера(латиница)\n(TSphere_trans)","GVS",null,null,"тариф на тепловую энергию (мощность)","тариф на тепловую энергию (мощность)"," руб/Гкал"," руб/Гкал","тыс руб/Гкал/час в месяц","тыс Гкал"]
["Астраханская область",null,2016,null,"апрель","IV квартал",null,null,"4",null,"метод сравнения аналогов",null,null,"сфера расширено\n(TSphere_full)","горячего водоснабжения",null,null,"тариф на теплоноситель","тариф на теплоноситель","руб/м3","-","-","тыс м3"]
["Белгородская область",null,2017,null,"май",null,null,"НДС для прочих режимов налогообложения\r\n/kind_of_NDS_tariff_etc/","5",{"$nulls":8},"тариф на услуги по передаче тепловой энергии","тариф на услуги по передаче тепловой энергии","руб/Гкал","руб/Гкал","тыс руб/Гкал/час в месяц","тыс Гкал"]
["Брянская область",{"$nulls":3},"июнь",null,null,"тариф указан с НДС для плательщиков НДС","6",{"$nulls":8},"тариф на услуги по передаче теплоносителя","тариф на услуги по передаче теплоносителя","руб/Гкал","руб/Гкал","тыс руб/Гкал/час в месяц","тыс Гкал"]
["Владимирская область",{"$nulls":3},"июль",null,null,"тариф указан без НДС для плательщиков НДС","7",{"$nulls":8},"плата за услуги по поддержанию резервной тепловой мощности при отсутствии потребления тепловой энергии","плата за услуги по поддержанию резервной тепловой мощности при отсутствии потребления тепловой энергии","тыс руб/Гкал/час в месяц","-","-","тыс Гкал"]
["Волгоградская область",{"$nulls":3},"август",{"$nulls":3},"8",{"$nulls":8},"плата за подключение (технологическое присоединение) к системе теплоснабжения","плата за подключение (технологическое присоединение) к системе теплоснабжения","тыс руб/Гкал/час (руб, тыс руб)","-","-","тыс Гкал"]
["Вологодская область",{"$nulls":3},"сентябрь",null,null,"НДС\n/kind_of_NDS_tariff/","9",{"$nulls":8},"компонент на тепловую энергию","тариф на горячую воду, поставляемую с использованием открытых систем теплоснабжения (горячего водоснабжения)","руб/Гкал","руб/Гкал ","тыс руб/Гкал/час в месяц","тыс Гкал"]
["Воронежская область",{"$nulls":3},"октябрь",null,null,"тариф для организаций не являющихся плательщиками НДС","10",{"$nulls":8},"компонент на теплоноситель"]
["г.Байконур",{"$nulls":3},"ноябрь",{"$nulls":3},"11"]
["г. Москва",{"$nulls":3},"декабрь",{"$nulls":3},"12"]
["г.Санкт-Петербург",{"$nulls":7},"13"]
["Еврейская автономная область",{"$nulls":7},"14"]
["Забайкальский край",{"$nulls":7},"15"]
["Ивановская область",{"$nulls":7},"16"]
["Иркутская область",{"$nulls":7},"17"]
["Кабардино-Балкарская республика",{"$nulls":7},"18"]
["Калининградская область",{"$nulls":7},"19"]
["Калужская область",{"$nulls":7},"20"]
["Камчатский край"]
["Карачаево-Черкесская республика"]
["Кемеровская область"]
["Кировская область"]
["Костромская область"]
["Краснодарский край"]
["Красноярский край"]
["Курганская область"]
["Курская область"]
["Ленинградская область"]
["Липецкая область"]
["Магаданская область"]
["Московская область"]
["Мурманская область"]
["Ненецкий автономный округ"]
["Нижегородская область"]
["Новгородская область"]
["Новосибирская область"]
["Омская область"]
["Оренбургская область"]
["Орловская область"]
["Пензенская область"]
["Пермский край"]
["Приморский край"]
["Псковская область"]
["Республика Адыгея"]
["Республика Алтай"]
["Республика Башкортостан"]
["Республика Бурятия"]
["Республика Дагестан"]
["Республика Ингушетия"]
["Республика Калмыкия"]
["Республика Карелия"]
["Республика Коми"]
["Республика Марий Эл"]
["Республика Мордовия"]
["Республика Саха (Якутия)"]
["Республика Северная Осетия-Алания"]
["Республика Татарстан"]
["Республика Тыва"]
["Республика Хакасия"]
["Ростовская область"]
["Рязанская область"]
["Самарская область"]
["Саратовская область"]
["Сахалинская область"]
["Свердловская область"]
["Смоленская область"]
["Ставропольский край"]
["Тамбовская область"]
["Тверская область"]
["Томская область"]
["Тульская область"]
["Тюменская область"]
["Удмуртская республика"]
["Ульяновская область"]
["Хабаровский край"]
["Ханты-Мансийский автономный округ"]
["Челябинская область"]
["Чеченская республика"]
["Чувашская республика"]
["Чукотский автономный округ"]
["Ямало-Ненецкий автономный округ"]
["Ярославская область"]

{"sheet":"et_union_hor","index":14,"n_rows":52,"n_cols":7,"rows_kept":52,"hidden":true,"merged":[[3,3,4,3],[3,4,4,4],[15,0,16,0],[15,4,15,7],[27,0,32,0]]}
[]
["et_List01","et_List01_1"]
[]
[{"$nulls":5},1]
[{"$nulls":6},"Добавить МО"]
[]
[]
["et_Comm"]
[]
[]
[]
[]
["et_List03"]
[]
[]
[{"$nulls":3},{"$f":"A16","v":0}]
[{"$nulls":3},{"$f":"A16&\".1\"","v":".1"},"Сайт организации в сети Интернет"]
[]
[]
[]
["et_List02_1"]
[]
[{"$nulls":3},{"$f":"A23&\".\"","v":"."},{"$f":"\"с \"&periodStart & \" по \" & periodEnd","v":"с 01.07.2017 по 31.12.2017"}]
[]
[]
["et_List02_2"]
[]
[{"$nulls":3},{"$f":"A28&\".\"","v":"."},{"$f":"\"С \"&periodStart & \" по \" & periodEnd & IF(double_rate_tariff=\"да\",,\", \"&unit_tariff_single_rate)","v":"С 01.07.2017 по 31.12.2017,  руб/Гкал"}]
[{"$nulls":3},{"$f":"D28&IF(group_rates=tariff_GVS,\"1.\",\"\")","v":"."},{"$f":"IF(group_rates=\"\",\"\",IF(group_rates=TEHSHEET!$S$10,TEHSHEET!$R$10,group_rates)) & IF(double_rate_tariff=\"да\",,\", \"&unit_tariff_single_rate)","v":"тариф на тепловую энергию (мощность),  руб/Гкал"}]
[{"$nulls":3},{"$f":"D29&\"1.\"","v":".1."},{"$f":"name_dblRate_1 & \", \" & unit_tariff_double_rate_p","v":"мощность,  руб/Гкал"}]
[{"$nulls":3},{"$f":"D29&\"2.\"","v":".2."},{"$f":"name_dblRate_2 & \", \" & unit_tariff_double_rate_c","v":"содержание, тыс руб/Гкал/час в месяц"}]
[null,"f",null,{"$f":"D28&\"2.\"","v":".2."},{"$f":"IF(group_rates=\"\",\"\",IF(group_rates=TEHSHEET!$S$10,TEHSHEET!$R$11,\"\"))&\", \"&TEHSHEET!$T$5","v":", руб/м3"}]
[{"$nulls":4},"Добавить поставщика"]
[]
["et_List02_6"]
[]
[{"$nulls":3},{"$f":"B37&\".\"","v":"."}]
[]
[]
["et_List02_3"]
[]
[{"$nulls":3},{"$f":"A42&\".\"","v":"."},{"$f":"\"с \"&periodStart & \" по \" & periodEnd","v":"с 01.07.2017 по 31.12.2017"}]
[]
[]
["et_List02_4"]
[]
[{"$nulls":3},{"$f":"A47&\".\"","v":"."},{"$f":"\"с \"&periodStart & \" по \" & periodEnd","v":"с 01.07.2017 по 31.12.2017"}]
[]
[]
["et_List02_5"]
[]
[{"$nulls":3},{"$f":"A52&\".\"","v":"."}]

{"sheet":"et_union_vert","index":15,"n_rows":0,"n_cols":0,"rows_kept":0,"hidden":true}

{"sheet":"modInfo","index":16,"n_rows":17,"n_cols":2,"rows_kept":17,"hidden":true}
[null,"Титульный"]
[null,"Для выбора того или иного источника публикации выполните двойной щелчок по синей ячейке напротив соответствующего источника.\nВНИМАНИЕ! Если Вы снимаете галочку с пункта, то будут скрыты и очищены соответствующие строки на листе \"Ссылки на публикации\"!\n\nОпубликование перечисленных в шаблоне показателей на сайте организации в сети Интернет и в печатных изданиях не обязательно, если данный шаблон предоставлен по системе ЕИАС (региональный сегмент)."]
[null,"Обязательное опубликование на официальном сайте органа исполнительной власти субъекта Российской Федерации в области государственного регулирования цен (тарифов), и (или) на официальном сайте органа местного самоуправления поселения или городского округа в случае их наделения в соответствии с законом субъекта Российской Федерации полномочиями по государственному регулированию цен (тарифов)предусмотрено пунктом 3 (а) постановления Правительства №570 от 05.07.2013 г."]
[null,"Задайте период регулирования, выбрав даты начала и окончания очередного периода регулирования из календаря (иконка справа от указанной ячейки), либо введите дату непосредственно в ячейку в формате - 'ДД.ММ.ГГГГ'"]
[null,"Шаблон заполняется раздельно по каждому виду тарифа"]
[null,"Ссылки на публикации"]
[null,"Вводите адрес сайта, не нарушая цвет ячейки /если копируете гиперссылку из браузера, то выполните двойной щелчок по ячейке и только после этого можете вставить скопированный элемент/"]
[null,"Обосновывающие материалы (документы) необходимо загружать с помощью \"ЕИАС Мониторинг\". Ссылка на инструкцию по загрузке обосновывающих материалов (документов) расположена на листе 'Инструкция' в п.'Методология заполнения'.\r\n\r\nВвводите ссылку, не нарушая цвет ячейки /если копируете гиперссылку из браузера, то выполните двойной щелчок по ячейке и только после этого можете вставить скопированный элемент/."]
[null,"Если для какого-либо пункта графы 'Наименование источника (сайта или печатного издания)' информация не раскрывалась, то в соответствующем поле укажите - 'не раскрывалась'"]
[null,"Список МО"]
[null,"В случае, если тариф не дифференцируется по системам теплоснабжения, перечислите все муниципальные районы, в которых организация осуществляет услуги в сфере теплоснабжения"]
[null,"В случае, если тариф не дифференцируется по системам теплоснабжения, перечислите все муниципальные образования, в которых организация осуществляет услуги в сфере теплоснабжения"]
[null,"Признак дифференциации тарифа"]
[null,"В случае, если тариф не дифференцируется по системам теплоснабжения, укажите '1'. Выберите значение из списка, указав очередной условный порядковый номер системы теплоснабжения"]
[null,"Стандарты"]
[null,"В качестве примечания Вы можете указать единицу измерения"]
[null,{"$f":"\"Укажите в ячейке \" & ADDRESS(ROW(Стандарты!$F$24),COLUMN(Стандарты!$F$24),4,TRUE) & \", ссылку на сведения о долгосрочных параметрах регулирования, размещенные в сети Интернет, либо укажите в ячейке \" & ADDRESS(ROW(Стандарты!$G$24),COLUMN(Стандарты!$G$24),4,TRUE) & \" ссылку на материалы Хранилища\"","v":"Укажите в ячейке F24, ссылку на сведения о долгосрочных параметрах регулирования, размещенные в сети Интернет, либо укажите в ячейке G24 ссылку на материалы Хранилища"}]

{"sheet":"modRegion","index":17,"n_rows":0,"n_cols":0,"rows_kept":0,"hidden":true}

{"sheet":"modReestr","index":18,"n_rows":0,"n_cols":0,"rows_kept":0,"hidden":true}

{"sheet":"modfrmReestr","index":19,"n_rows":0,"n_cols":0,"rows_kept":0,"hidden":true}

{"sheet":"modUpdTemplMain","index":20,"n_rows":0,"n_cols":0,"rows_kept":0,"hidden":true}

{"sheet":"REESTR_ORG","index":21,"n_rows":188,"n_cols":12,"rows_kept":188,"hidden":true}
["№","NSRF","MR_NAME","OKTMO_MR_NAME","MO_NAME","OKTMO_NAME","RST_ORG_ID","ORG_NAME","INN_NAME","KPP_NAME","VDET_NAME"]
[1,"Республика Хакасия","Алтайский","95605000","Аршановское","95605405","26354663","МУП \"Тепло\" с.Аршаново","1904004931","190401001","производство (некомбинированная выработка)+передача+сбыт","WARM"]
[2,"Республика Хакасия","Алтайский","95605000","Белоярское","95605410","30373066","МУП \"ПРОГРЕСС\"","1901125790","190101001","Теплоноситель - Сбыт :: Производство :: Передача","WARM"]
[3,"Республика Хакасия","Алтайский","95605000","Белоярское","95605410","30373066","МУП \"ПРОГРЕСС\"","1901125790","190101001","производство (некомбинированная выработка)+передача+сбыт","WARM"]
[4,"Республика Хакасия","Алтайский","95605000","Белоярское","95605410","26354666","ОАО \"Белоярский тепловодоканал\"","1901098096","190101001","производство (некомбинированная выработка)+передача+сбыт","WARM"]
[5,"Республика Хакасия","Алтайский","95605000","Белоярское","95605410","27882031","ООО \"Алтай ЭнергоРесурс\"","1904005131","190401001","производство (некомбинированная выработка)+передача+сбыт","WARM"]
[6,"Республика Хакасия","Алтайский","95605000","Белоярское","95605410","28453986","ООО \"Теплоэнрегия\"","1901115263","190101001","производство (некомбинированная выработка)+передача+сбыт","WARM"]
[7,"Республика Хакасия","Алтайский","95605000","Белоярское","95605410","28870819","ООО \"УЖКС\"","1901120619","190101001","производство (некомбинированная выработка)+передача+сбыт","WARM"]
[8,"Республика Хакасия","Алтайский","95605000","Белоярское","95605410","26354635","ФГБУ \"Енисейрыбвод\"","2466053121","246601001","производство (некомбинированная выработка)+передача+сбыт","WARM"]
[9,"Республика Хакасия","Алтайский","95605000","Изыхское","95605418","28012374","МУП МО Изыхский сельсовет \"Изыхское\"","1901109439","190101001","производство (некомбинированная выработка)+передача","WARM"]
[10,"Республика Хакасия","Алтайский","95605000","Изыхское","95605418","29648727","ООО \"Агро Лидер\"","1901114968","190101001","производство (некомбинированная выработка)+передача+сбыт","WARM"]
[11,"Республика Хакасия","Алтайский","95605000","Новороссийское","95605435","28036615","МУП \"Надежда\"","1901109485","190101001","производство (некомбинированная выработка)+передача+сбыт","WARM"]
[12,"Республика Хакасия","Алтайский","95605000","Новороссийское","95605435","26354664","МУП \"Новороссийское\"","1904004949","190401001","производство (некомбинированная выработка)+передача+сбыт","WARM"]
[13,"Республика Хакасия","Алтайский","95605000","Очурское","95605440","26354662","МУП \"Енисей\" с.Очуры","1904004924","190401001","производство (некомбинированная выработка)+передача+сбыт","WARM"]
[14,"Республика Хакасия","Алтайский","95605000","Очурское","95605440","30373107","МУП ЖКХ \"Очуры\"","1901126890","190101001","Теплоноситель - Сбыт :: Производство :: Передача","WARM"]
[15,"Республика Хакасия","Алтайский","95605000","Очурское","95605440","30373107","МУП ЖКХ \"Очуры\"","1901126890","190101001","производство (некомбинированная выработка)+передача+сбыт","WARM"]
[16,"Республика Хакасия","Алтайский","95605000","Подсинское","95605445","26522906","ГУП \"Хакресводоканал\"","1901001202","191001001","производство (некомбинированная выработка)+передача+сбыт","WARM"]
[17,"Республика Хакасия","Алтайский","95605000","Подсинское","95605445","30394679","МУП \"Подсинее\"","1901121570","190101001","производство (некомбинированная выработка)+сбыт","WARM"]
[18,"Республика Хакасия","Алтайский","95605000","Подсинское","95605445","26354660","МУП ЖКХ с.Подсинее","1904003198","190401001","Передача","WARM"]
[19,"Республика Хакасия","Алтайский","95605000","Подсинское","95605445","26355163","ООО  \"Сибирская губерния\"","1904005364","190401001","производство (некомбинированная выработка)","WARM"]
[20,"Республика Хакасия","Аскизский","95608000","Аскизское","95608405","26824651","Красноярская дирекция по тепловодоснабжению","7708503727","246645014","производство (некомбинированная выработка)+передача+сбыт","WARM"]
[21,"Республика Хакасия","Аскизский","95608000","Аскизское","95608405","26354669","ООО \"Аскизсервис\"","1905009450","190501001","производство (некомбинированная выработка)+передача+сбыт","WARM"]
[22,"Республика Хакасия","Аскизский","95608000","Аскизское","95608405","28873522","ООО \"Аскизтеплосервис\"","1905011748","190501001","производство (некомбинированная выработка)+передача+сбыт","WARM"]
[23,"Республика Хакасия","Аскизский","95608000","Базинское","95608410","26824651","Красноярская дирекция по тепловодоснабжению","7708503727","246645014","производство (некомбинированная выработка)+передача+сбыт","WARM"]
[24,"Республика Хакасия","Аскизский","95608000","Балыксинское","95608409","26824651","Красноярская дирекция по тепловодоснабжению","7708503727","246645014","производство (некомбинированная выработка)+передача+сбыт","WARM"]
[25,"Республика Хакасия","Аскизский","95608000","Бельтирское","95608412","26824651","Красноярская дирекция по тепловодоснабжению","7708503727","246645014","производство (некомбинированная выработка)+передача+сбыт","WARM"]
[26,"Республика Хакасия","Аскизский","95608000","Бельтирское","95608412","26983643","МУП \"Бельтирское ЖКХ\"","1905010342","190501001","производство (некомбинированная выработка)+передача+сбыт","WARM"]
[27,"Республика Хакасия","Аскизский","95608000","Бирикчульское","95608413","26824651","Красноярская дирекция по тепловодоснабжению","7708503727","246645014","производство (некомбинированная выработка)+передача+сбыт","WARM"]
[28,"Республика Хакасия","Аскизский","95608000","Верх-Аскизское","95608415","26824651","Красноярская дирекция по тепловодоснабжению","7708503727","246645014","производство (некомбинированная выработка)+передача+сбыт","WARM"]
[29,"Республика Хакасия","Аскизский","95608000","Есинское","95608420","26824651","Красноярская дирекция по тепловодоснабжению","7708503727","246645014","производство (некомбинированная выработка)+передача+сбыт","WARM"]
[30,"Республика Хакасия","Аскизский","95608000","Кызласское","95608430","26824651","Красноярская дирекция по тепловодоснабжению","7708503727","246645014","производство (некомбинированная выработка)+передача+сбыт","WARM"]
[31,"Республика Хакасия","Аскизский","95608000","Кызласское","95608430","26444618","ООО \"Чазой\" с.Кызлас","1905009756","190501001","производство (некомбинированная выработка)+передача+сбыт","WARM"]
[32,"Республика Хакасия","Аскизский","95608000","Поселок Аскиз","95608151","26824651","Красноярская дирекция по тепловодоснабжению","7708503727","246645014","производство (некомбинированная выработка)+передача+сбыт","WARM"]
[33,"Республика Хакасия","Аскизский","95608000","Поселок Аскиз","95608151","27201122","МУП МО Аскизский поссовет \"Аскизские тепловые сети\"","1905010720","190501001","производство (некомбинированная выработка)+передача+сбыт","WARM"]
[34,"Республика Хакасия","Аскизский","95608000","Поселок Бискамжа","95608165","26824651","Красноярская дирекция по тепловодоснабжению","7708503727","246645014","производство (некомбинированная выработка)+передача+сбыт","WARM"]
[35,"Республика Хакасия","Аскизский","95608000","Поселок Бискамжа","95608165","27566866","МУП  МО Бискамжинский поссовет \"Жилсервис\"","1905010991","190501001","производство (некомбинированная выработка)+передача+сбыт","WARM"]
[36,"Республика Хакасия","Аскизский","95608000","Поселок Вершина Теи","95608169","26824651","Красноярская дирекция по тепловодоснабжению","7708503727","246645014","производство (некомбинированная выработка)+передача+сбыт","WARM"]
[37,"Республика Хакасия","Аскизский","95608000","Поселок Вершина Теи","95608169","30414471","МУП \"Управляющая компания\"","1905012244","190501001","Теплоноситель - Сбыт :: Производство :: Передача","WARM"]
[38,"Республика Хакасия","Аскизский","95608000","Поселок Вершина Теи","95608169","30414471","МУП \"Управляющая компания\"","1905012244","190501001","производство (некомбинированная выработка)+передача+сбыт","WARM"]
[39,"Республика Хакасия","Аскизский","95608000","Поселок Вершина Теи","95608169","26354667","ООО \"Тейские энергосети\"","1905008664","190501001","производство (некомбинированная выработка)+передача+сбыт","WARM"]
[40,"Республика Хакасия","Аскизский","95608000","Поселок Вершина Теи","95608169","28876026","ООО \"УК ВСТМ г. Абаза\"","1909001557","190901001","производство (некомбинированная выработка)+передача+сбыт","WARM"]
[41,"Республика Хакасия","Аскизский","95608000","Пуланкольское","95608440","26824651","Красноярская дирекция по тепловодоснабжению","7708503727","246645014","производство (некомбинированная выработка)+передача+сбыт","WARM"]
[42,"Республика Хакасия","Аскизский","95608000","Пуланкольское","95608440","28799585","ООО \"ХакасГрадСтрой\"","1905011875","190501001","производство (некомбинированная выработка)+передача+сбыт","WARM"]
[43,"Республика Хакасия","Аскизский","95608000","Усть-Камыштинское","95608450","26824651","Красноярская дирекция по тепловодоснабжению","7708503727","246645014","производство (некомбинированная выработка)+передача+сбыт","WARM"]
[44,"Республика Хакасия","Аскизский","95608000","Усть-Камыштинское","95608450","28799585","ООО \"ХакасГрадСтрой\"","1905011875","190501001","производство (некомбинированная выработка)+передача+сбыт","WARM"]
[45,"Республика Хакасия","Аскизский","95608000","Усть-Чульское","95608455","26824651","Красноярская дирекция по тепловодоснабжению","7708503727","246645014","производство (некомбинированная выработка)+передача+сбыт","WARM"]
[46,"Республика Хакасия","Аскизский","95608000","Усть-Чульское","95608455","28799585","ООО \"ХакасГрадСтрой\"","1905011875","190501001","производство (некомбинированная выработка)+передача+сбыт","WARM"]
[47,"Республика Хакасия","Бейский","95612000","Бейское","95612405","26354647","ГОУ НПО ПУ №15 с.Бея","1902064678","190201001","производство (некомбинированная выработка)+передача+сбыт","WARM"]
[48,"Республика Хакасия","Бейский","95612000","Бейское","95612405","26441289","МУП \"Теплосеть\" с.Бея","1902024932","190201001","производство (некомбинированная выработка)+передача+сбыт","WARM"]
[49,"Республика Хакасия","Бейский","95612000","Бейское","95612405","28873531","ООО \"Теплоресурс\"","1906004581","190601001","производство (некомбинированная выработка)+передача+сбыт","WARM"]
[50,"Республика Хакасия","Бейский","95612000","Кирбинское","95612425","26442225","МУП ЖКХ \"Железнодорожник\"","1902024266","190201001","производство (некомбинированная выработка)+передача+сбыт","WARM"]
[51,"Республика Хакасия","Бейский","95612000","Новоенисейское","95612440","28453999","МУП \"Новоенисейские теплосети\"","1906004422","190601001","производство (некомбинированная выработка)+передача+сбыт","WARM"]
[52,"Республика Хакасия","Бейский","95612000","Новоенисейское","95612440","30355688","МУП \"Теплоресурс\" с. Новоенисейка","1906004648","190601001","производство (некомбинированная выработка)+передача","WARM"]
[53,"Республика Хакасия","Бейский","95612000","Новоенисейское","95612440","30355688","МУП \"Теплоресурс\" с. Новоенисейка","1906004648","190601001","производство (некомбинированная выработка)+передача+сбыт","WARM"]
[54,"Республика Хакасия","Бейский","95612000","Новоенисейское","95612440","26354671","МУП ЖКХ с.Новоенисейка","1906005539","190601001","производство (некомбинированная выработка)+передача+сбыт","WARM"]
[55,"Республика Хакасия","Боградский","95615000","Боградское","95615410","26522906","ГУП \"Хакресводоканал\"","1901001202","191001001","производство (некомбинированная выработка)+передача+сбыт","WARM"]
[56,"Республика Хакасия","Боградский","95615000","Боградское","95615410","26824651","Красноярская дирекция по тепловодоснабжению","7708503727","246645014","производство (некомбинированная выработка)+передача+сбыт","WARM"]
[57,"Республика Хакасия","Боградский","95615000","Боградское","95615410","26370737","МУП \"Боградский \"Коммунальник\" (с.Боград, с.Сон)","1907001008","190701001","производство (некомбинированная выработка)+передача+сбыт","WARM"]
[58,"Республика Хакасия","Боградский","95615000","Боградское","95615410","28873027","ООО \"Водоканал Боградского района\"","1907004094","190701001","производство (некомбинированная выработка)+передача+сбыт","WARM"]
[59,"Республика Хакасия","Боградский","95615000","Боградское","95615410","28422399","ООО \"Хакасресводоканал Боградского района\"","1907004062","190701001","производство (некомбинированная выработка)+передача+сбыт","WARM"]
[60,"Республика Хакасия","Боградский","95615000","Бородинское","95615420","26522906","ГУП \"Хакресводоканал\"","1901001202","191001001","производство (некомбинированная выработка)+передача+сбыт","WARM"]
[61,"Республика Хакасия","Боградский","95615000","Бородинское","95615420","26824651","Красноярская дирекция по тепловодоснабжению","7708503727","246645014","производство (некомбинированная выработка)+передача+сбыт","WARM"]
[62,"Республика Хакасия","Боградский","95615000","Бородинское","95615420","28873027","ООО \"Водоканал Боградского района\"","1907004094","190701001","производство (некомбинированная выработка)+передача+сбыт","WARM"]
[63,"Республика Хакасия","Боградский","95615000","Бородинское","95615420","28494698","ООО \"Территория\"","2459017901","245901001","производство (некомбинированная выработка)+передача+сбыт","WARM"]
[64,"Республика Хакасия","Боградский","95615000","Бородинское","95615420","28422399","ООО \"Хакасресводоканал Боградского района\"","1907004062","190701001","производство (некомбинированная выработка)+передача+сбыт","WARM"]
[65,"Республика Хакасия","Боградский","95615000","Знаменское","95615430","28494698","ООО \"Территория\"","2459017901","245901001","производство (некомбинированная выработка)+передача+сбыт","WARM"]
[66,"Республика Хакасия","Боградский","95615000","Первомайское","95615440","28494698","ООО \"Территория\"","2459017901","245901001","производство (некомбинированная выработка)+передача+сбыт","WARM"]
[67,"Республика Хакасия","Боградский","95615000","Пушновское","95615445","28873086","МБУ ЖКХ и БО \"Пушновское\"","1907004136","190701001","производство (некомбинированная выработка)+передача+сбыт","WARM"]
[68,"Республика Хакасия","Боградский","95615000","Сарагашское","95615450","28048657","МБУ ЖКХ БО \"Сарагашское\"","1907002925","190701001","производство (некомбинированная выработка)+передача+сбыт","WARM"]
[69,"Республика Хакасия","Боградский","95615000","Сонское","95615460","26522906","ГУП \"Хакресводоканал\"","1901001202","191001001","производство (некомбинированная выработка)+передача+сбыт","WARM"]
[70,"Республика Хакасия","Боградский","95615000","Сонское","95615460","26824651","Красноярская дирекция по тепловодоснабжению","7708503727","246645014","производство (некомбинированная выработка)+передача+сбыт","WARM"]
[71,"Республика Хакасия","Боградский","95615000","Сонское","95615460","28873027","ООО \"Водоканал Боградского района\"","1907004094","190701001","производство (некомбинированная выработка)+передача+сбыт","WARM"]
[72,"Республика Хакасия","Боградский","95615000","Сонское","95615460","28422399","ООО \"Хакасресводоканал Боградского района\"","1907004062","190701001","производство (некомбинированная выработка)+передача+сбыт","WARM"]
[73,"Республика Хакасия","Орджоникидзевский","95620000","Копьёвский поссовет","95620403","26523591","ГУП РХ \"Орджоникидзевское ДРСУ\"","1908000166","190801001","производство (некомбинированная выработка)+передача+сбыт","WARM"]
[74,"Республика Хакасия","Орджоникидзевский","95620000","Копьёвский поссовет","95620403","26824651","Красноярская дирекция по тепловодоснабжению","7708503727","246645014","производство (некомбинированная выработка)+передача+сбыт","WARM"]
[75,"Республика Хакасия","Орджоникидзевский","95620000","Копьёвский поссовет","95620403","26354673","МУП \"Копьевское ЖКХ\"","1908003015","190801001","производство (некомбинированная выработка)+передача+сбыт","WARM"]
[76,"Республика Хакасия","Орджоникидзевский","95620000","Копьёвский сельсовет","95620420","26824651","Красноярская дирекция по тепловодоснабжению","7708503727","246645014","производство (некомбинированная выработка)+передача+сбыт","WARM"]
[77,"Республика Хакасия","Орджоникидзевский","95620000","Красноиюсское","95620425","26824651","Красноярская дирекция по тепловодоснабжению","7708503727","246645014","производство (некомбинированная выработка)+передача+сбыт","WARM"]
[78,"Республика Хакасия","Орджоникидзевский","95620000","Красноиюсское","95620425","26354676","МКП\"Красноиюсское ЖКХ\"","1908003390","190801001","производство (некомбинированная выработка)+передача+сбыт","WARM"]
[79,"Республика Хакасия","Орджоникидзевский","95620000","Новомарьясовское","95620430","26824651","Красноярская дирекция по тепловодоснабжению","7708503727","246645014","производство (некомбинированная выработка)+передача+сбыт","WARM"]
[80,"Республика Хакасия","Орджоникидзевский","95620000","Приисковое","95620437","26824651","Красноярская дирекция по тепловодоснабжению","7708503727","246645014","производство (некомбинированная выработка)+передача+сбыт","WARM"]
[81,"Республика Хакасия","Орджоникидзевский","95620000","Приисковое","95620437","26354674","МКП \"Приисковое ЖКХ\"","1908003135","190801001","производство (некомбинированная выработка)+передача+сбыт","WARM"]
[82,"Республика Хакасия","Орджоникидзевский","95620000","Устинкинское","95620450","26824651","Красноярская дирекция по тепловодоснабжению","7708503727","246645014","производство (некомбинированная выработка)+передача+сбыт","WARM"]
[83,"Республика Хакасия","Орджоникидзевский","95620000","Устинкинское","95620450","26354675","МКП \"Устинкинское ЖКХ\"","1908003382","190801001","производство (некомбинированная выработка)+передача+сбыт","WARM"]
[84,"Республика Хакасия","Орджоникидзевский","95620000","с. Орджоникидзевское","95620435","26824651","Красноярская дирекция по тепловодоснабжению","7708503727","246645014","производство (некомбинированная выработка)+передача+сбыт","WARM"]
[85,"Республика Хакасия","Орджоникидзевский","95620000","с. Орджоникидзевское","95620435","27568130","МКП \"Орджоникидзевское ЖКХ\"","1908003600","190801001","производство (некомбинированная выработка)+передача+сбыт","WARM"]
[86,"Республика Хакасия","Таштыпский","95625000","Таштыпское","95625440","26354678","ГБОУ НПО ПУ-16 с.Таштып","1909010142","190901001","производство (некомбинированная выработка)+передача+сбыт","WARM"]
[87,"Республика Хакасия","Таштыпский","95625000","Таштыпское","95625440","26824651","Красноярская дирекция по тепловодоснабжению","7708503727","246645014","производство (некомбинированная выработка)+передача+сбыт","WARM"]
[88,"Республика Хакасия","Таштыпский","95625000","Таштыпское","95625440","26354677","МУП \"ТЖКХ\"","1909000391","190901001","производство (некомбинированная выработка)+передача+сбыт","WARM"]
[89,"Республика Хакасия","Таштыпский","95625000","Таштыпское","95625440","28460574","ООО \"Тасхыл\"","1909001677","190901001","производство (некомбинированная выработка)","WARM"]
[90,"Республика Хакасия","Усть-Абаканский","95630000","Вершино-Биджинское","95630405","26824651","Красноярская дирекция по тепловодоснабжению","7708503727","246645014","производство (некомбинированная выработка)+передача+сбыт","WARM"]
[91,"Республика Хакасия","Усть-Абаканский","95630000","Вершино-Биджинское","95630405","26354698","МБУ ЖКХ \"Вершина\"","1910011006","191001001","производство (некомбинированная выработка)+передача+сбыт","WARM"]
[92,"Республика Хакасия","Усть-Абаканский","95630000","Доможаковское","95630415","26824651","Красноярская дирекция по тепловодоснабжению","7708503727","246645014","производство (некомбинированная выработка)+передача+сбыт","WARM"]
[93,"Республика Хакасия","Усть-Абаканский","95630000","Доможаковское","95630415","26354686","МБУ ЖКХ \"ТЭМП\"","1910011060","191001001","производство (некомбинированная выработка)+передача+сбыт","WARM"]
[94,"Республика Хакасия","Усть-Абаканский","95630000","Московское","95630430","26824651","Красноярская дирекция по тепловодоснабжению","7708503727","246645014","производство (некомбинированная выработка)+передача+сбыт","WARM"]
[95,"Республика Хакасия","Усть-Абаканский","95630000","Опытненское","95630435","26824651","Красноярская дирекция по тепловодоснабжению","7708503727","246645014","производство (некомбинированная выработка)+передача+сбыт","WARM"]
[96,"Республика Хакасия","Усть-Абаканский","95630000","Опытненское","95630435","28012491","ООО \"Прогресс-Сервис\"","1910010891","191001001","производство (некомбинированная выработка)+передача+сбыт","WARM"]
[97,"Республика Хакасия","Усть-Абаканский","95630000","Поселок Усть-Абакан","95630151","26522906","ГУП \"Хакресводоканал\"","1901001202","191001001","производство (некомбинированная выработка)+передача+сбыт","WARM"]
[98,"Республика Хакасия","Усть-Абаканский","95630000","Поселок Усть-Абакан","95630151","26824651","Красноярская дирекция по тепловодоснабжению","7708503727","246645014","производство (некомбинированная выработка)+передача+сбыт","WARM"]
[99,"Республика Хакасия","Усть-Абаканский","95630000","Поселок Усть-Абакан","95630151","28012491","ООО \"Прогресс-Сервис\"","1910010891","191001001","производство (некомбинированная выработка)+передача+сбыт","WARM"]
[100,"Республика Хакасия","Усть-Абаканский","95630000","Поселок Усть-Абакан","95630151","26354684","ООО \"ТВК Усть-Абакан\"","1910012384","191001001","производство (некомбинированная выработка)+передача+сбыт","WARM"]
[101,"Республика Хакасия","Усть-Абаканский","95630000","Поселок Усть-Абакан","95630151","26354680","ФКУ Абаканская воспитательная колония УФСИН России по РХ","1910000043","191001001","производство (некомбинированная выработка)+передача+сбыт","WARM"]
[102,"Республика Хакасия","Усть-Абаканский","95630000","Райковское","95630440","26824651","Красноярская дирекция по тепловодоснабжению","7708503727","246645014","производство (некомбинированная выработка)+передача+сбыт","WARM"]
[103,"Республика Хакасия","Усть-Абаканский","95630000","Расцветовское","95630445","26824651","Красноярская дирекция по тепловодоснабжению","7708503727","246645014","производство (некомбинированная выработка)+передача+сбыт","WARM"]
[104,"Республика Хакасия","Усть-Абаканский","95630000","Расцветовское","95630445","28873506","ООО \"ТеплоТранс\"","1910013155","191001001","производство (некомбинированная выработка)+передача+сбыт","WARM"]
[105,"Республика Хакасия","Усть-Абаканский","95630000","Расцветовское","95630445","28464053","ООО \"Термолайн\"","1910012810","191001001","производство (некомбинированная выработка)+передача+сбыт","WARM"]
[106,"Республика Хакасия","Усть-Абаканский","95630000","Расцветовское","95630445","30401233","ООО \"УК Хорс\"","2465132282","246501001","Теплоноситель - Сбыт :: Производство :: Передача","WARM"]
[107,"Республика Хакасия","Усть-Абаканский","95630000","Расцветовское","95630445","30401233","ООО \"УК Хорс\"","2465132282","246501001","производство (некомбинированная выработка)+передача+сбыт","WARM"]
[108,"Республика Хакасия","Усть-Абаканский","95630000","Солнечное","95630460","26824651","Красноярская дирекция по тепловодоснабжению","7708503727","246645014","производство (некомбинированная выработка)+передача+сбыт","WARM"]
[109,"Республика Хакасия","Усть-Абаканский","95630000","Усть-Бюрское","95630465","26824651","Красноярская дирекция по тепловодоснабжению","7708503727","246645014","производство (некомбинированная выработка)+передача+сбыт","WARM"]
[110,"Республика Хакасия","Усть-Абаканский","95630000","Чарковское","95630470","26824651","Красноярская дирекция по тепловодоснабжению","7708503727","246645014","производство (некомбинированная выработка)+передача+сбыт","WARM"]
[111,"Республика Хакасия","Усть-Абаканский","95630000","Чарковское","95630470","26354685","МБУ ЖКХ \"Чарки\"","1910011052","191001001","производство (некомбинированная выработка)+передача+сбыт","WARM"]
[112,"Республика Хакасия","Ширинский","95635000","Борцовское","95635410","26824651","Красноярская дирекция по тепловодоснабжению","7708503727","246645014","производство (некомбинированная выработка)+передача+сбыт","WARM"]
[113,"Республика Хакасия","Ширинский","95635000","Борцовское","95635410","26354694","ООО \"Коммунальное хозяйство \"Борец\"","1911008084","191101001","производство (некомбинированная выработка)+передача+сбыт","WARM"]
[114,"Республика Хакасия","Ширинский","95635000","Борцовское","95635410","30388793","ООО \"ТВР\"","1911008729","191101001","Теплоноситель - Сбыт","WARM"]
[115,"Республика Хакасия","Ширинский","95635000","Борцовское","95635410","30388793","ООО \"ТВР\"","1911008729","191101001","производство (некомбинированная выработка)","WARM"]
[116,"Республика Хакасия","Ширинский","95635000","Борцовское","95635410","30388793","ООО \"ТВР\"","1911008729","191101001","производство (некомбинированная выработка)+передача+сбыт","WARM"]
[117,"Республика Хакасия","Ширинский","95635000","Борцовское","95635410","28872996","ООО \"Хакресводоканал Ширинского района\"","1911008542","191101001","производство (некомбинированная выработка)+передача+сбыт","WARM"]
[118,"Республика Хакасия","Ширинский","95635000","Жемчужненский сельсовет","95635430","28870673","ООО \"Фирма \"Ригор\"","2466095756","246601001","Теплоноситель - Сбыт :: Производство :: Передача","WARM"]
[119,"Республика Хакасия","Ширинский","95635000","Жемчужненский сельсовет","95635430","28870673","ООО \"Фирма \"Ригор\"","2466095756","246601001","производство (некомбинированная выработка)+передача+сбыт","WARM"]
[120,"Республика Хакасия","Ширинский","95635000","Коммунаровский сельсовет","95635401","26522906","ГУП \"Хакресводоканал\"","1901001202","191001001","производство (некомбинированная выработка)+передача+сбыт","WARM"]
[121,"Республика Хакасия","Ширинский","95635000","Коммунаровский сельсовет","95635401","26824651","Красноярская дирекция по тепловодоснабжению","7708503727","246645014","производство (некомбинированная выработка)+передача+сбыт","WARM"]
[122,"Республика Хакасия","Ширинский","95635000","Коммунаровский сельсовет","95635401","26354688","ОАО \"Коммунаровский рудник\"","1911000014","191101001","производство (некомбинированная выработка)+передача+сбыт","WARM"]
[123,"Республика Хакасия","Ширинский","95635000","Коммунаровский сельсовет","95635401","30388793","ООО \"ТВР\"","1911008729","191101001","Теплоноситель - Производство","WARM"]
[124,"Республика Хакасия","Ширинский","95635000","Коммунаровский сельсовет","95635401","30388793","ООО \"ТВР\"","1911008729","191101001","Теплоноситель - Сбыт :: Производство","WARM"]
[125,"Республика Хакасия","Ширинский","95635000","Коммунаровский сельсовет","95635401","30388793","ООО \"ТВР\"","1911008729","191101001","производство (некомбинированная выработка)","WARM"]
[126,"Республика Хакасия","Ширинский","95635000","Коммунаровский сельсовет","95635401","30388793","ООО \"ТВР\"","1911008729","191101001","производство (некомбинированная выработка)+передача+сбыт","WARM"]
[127,"Республика Хакасия","Ширинский","95635000","Коммунаровский сельсовет","95635401","28422385","ООО \"Хакасресводоканал Ширинского района\"","1911008422","191101001","производство (некомбинированная выработка)+передача+сбыт","WARM"]
[128,"Республика Хакасия","Ширинский","95635000","Коммунаровский сельсовет","95635401","28872996","ООО \"Хакресводоканал Ширинского района\"","1911008542","191101001","производство (некомбинированная выработка)+передача+сбыт","WARM"]
[129,"Республика Хакасия","Ширинский","95635000","Соленоозерное","95635438","26824651","Красноярская дирекция по тепловодоснабжению","7708503727","246645014","производство (некомбинированная выработка)+передача+сбыт","WARM"]
[130,"Республика Хакасия","Ширинский","95635000","Соленоозерное","95635438","27568286","МУП с.Соленоозерное ЖКХ \"Коммунальщик\"","1911007362","191101001","Передача+Сбыт","WARM"]
[131,"Республика Хакасия","Ширинский","95635000","Соленоозерное","95635438","27568286","МУП с.Соленоозерное ЖКХ \"Коммунальщик\"","1911007362","191101001","производство комбинированная выработка","WARM"]
[132,"Республика Хакасия","Ширинский","95635000","Туимский сельсовет","95635403","26522906","ГУП \"Хакресводоканал\"","1901001202","191001001","производство (некомбинированная выработка)+передача+сбыт","WARM"]
[133,"Республика Хакасия","Ширинский","95635000","Туимский сельсовет","95635403","26824651","Красноярская дирекция по тепловодоснабжению","7708503727","246645014","производство (некомбинированная выработка)+передача+сбыт","WARM"]
[134,"Республика Хакасия","Ширинский","95635000","Туимский сельсовет","95635403","28422385","ООО \"Хакасресводоканал Ширинского района\"","1911008422","191101001","производство (некомбинированная выработка)+передача+сбыт","WARM"]
[135,"Республика Хакасия","Ширинский","95635000","Туимский сельсовет","95635403","28872996","ООО \"Хакресводоканал Ширинского района\"","1911008542","191101001","производство (некомбинированная выработка)+передача+сбыт","WARM"]
[136,"Республика Хакасия","Ширинский","95635000","Туимский сельсовет","95635403","30388824","ООО УК \"Наш дом\"","1911008302","191101001","Теплоноситель - Сбыт :: Производство :: Передача","WARM"]
[137,"Республика Хакасия","Ширинский","95635000","Туимский сельсовет","95635403","30388824","ООО УК \"Наш дом\"","1911008302","191101001","производство (некомбинированная выработка)+передача+сбыт","WARM"]
[138,"Республика Хакасия","Ширинский","95635000","Фыркальское","95635450","26824651","Красноярская дирекция по тепловодоснабжению","7708503727","246645014","производство (некомбинированная выработка)+передача+сбыт","WARM"]
[139,"Республика Хакасия","Ширинский","95635000","Фыркальское","95635450","26961082","МУП ЖКХ \"ВодТехСервис\"","1911008038","191101001","производство (некомбинированная выработка)+передача+сбыт","WARM"]
[140,"Республика Хакасия","Ширинский","95635000","Целинное","95635455","26824651","Красноярская дирекция по тепловодоснабжению","7708503727","246645014","производство (некомбинированная выработка)+передача+сбыт","WARM"]
[141,"Республика Хакасия","Ширинский","95635000","Целинное","95635455","26354692","МУП \"ЖКХ п.Целинное\"","1911005816","191101001","производство (некомбинированная выработка)+передача+сбыт","WARM"]
[142,"Республика Хакасия","Ширинский","95635000","Целинное","95635455","30388793","ООО \"ТВР\"","1911008729","191101001","Теплоноситель - Сбыт","WARM"]
[143,"Республика Хакасия","Ширинский","95635000","Целинное","95635455","30388793","ООО \"ТВР\"","1911008729","191101001","производство (некомбинированная выработка)","WARM"]
[144,"Республика Хакасия","Ширинский","95635000","Целинное","95635455","30388793","ООО \"ТВР\"","1911008729","191101001","производство (некомбинированная выработка)+передача+сбыт","WARM"]
[145,"Республика Хакасия","Ширинский","95635000","Целинное","95635455","28872996","ООО \"Хакресводоканал Ширинского района\"","1911008542","191101001","производство (некомбинированная выработка)+передача+сбыт","WARM"]
[146,"Республика Хакасия","Ширинский","95635000","Черноозерное","95635460","26824651","Красноярская дирекция по тепловодоснабжению","7708503727","246645014","производство (некомбинированная выработка)+передача+сбыт","WARM"]
[147,"Республика Хакасия","Ширинский","95635000","Ширинский сельсовет","95635404","26522906","ГУП \"Хакресводоканал\"","1901001202","191001001","производство (некомбинированная выработка)+передача+сбыт","WARM"]
[148,"Республика Хакасия","Ширинский","95635000","Ширинский сельсовет","95635404","26824651","Красноярская дирекция по тепловодоснабжению","7708503727","246645014","производство (некомбинированная выработка)+передача+сбыт","WARM"]
[149,"Республика Хакасия","Ширинский","95635000","Ширинский сельсовет","95635404","26354693","ООО \"Коммунальник\"","1911007690","191101001","производство (некомбинированная выработка)+передача+сбыт","WARM"]
[150,"Республика Хакасия","Ширинский","95635000","Ширинский сельсовет","95635404","28870673","ООО \"Фирма \"Ригор\"","2466095756","246601001","Теплоноситель - Сбыт :: Производство :: Передача","WARM"]
[151,"Республика Хакасия","Ширинский","95635000","Ширинский сельсовет","95635404","28870673","ООО \"Фирма \"Ригор\"","2466095756","246601001","производство (некомбинированная выработка)+передача+сбыт","WARM"]
[152,"Республика Хакасия","Ширинский","95635000","Ширинский сельсовет","95635404","28422385","ООО \"Хакасресводоканал Ширинского района\"","1911008422","191101001","производство (некомбинированная выработка)+передача+сбыт","WARM"]
[153,"Республика Хакасия","Ширинский","95635000","село Джирим","95635420","28036643","МУП ЖКХ \"Коммунальщик с.Джирим\"","1911008310","191101001","производство (некомбинированная выработка)","WARM"]
[154,"Республика Хакасия","город Абаза","95702000","город Абаза","95702000","26522906","ГУП \"Хакресводоканал\"","1901001202","191001001","производство (некомбинированная выработка)+передача+сбыт","WARM"]
[155,"Республика Хакасия","город Абаза","95702000","город Абаза","95702000","26354679","ООО \"Абаза-Энерго\"","1909051981","190901001","производство (некомбинированная выработка)+передача+сбыт","WARM"]
[156,"Республика Хакасия","город Абаза","95702000","город Абаза","95702000","27753258","ООО \"УК \"Наш дом\"","1909000585","190901001","производство (некомбинированная выработка)+передача+сбыт","WARM"]
[157,"Республика Хакасия","город Абакан","95701000","город Абакан","95701000","30406011","АО «ГУ ЖКХ»","5116000922","246545001","Теплоноситель - Сбыт :: Производство :: Передача","WARM"]
[158,"Республика Хакасия","город Абакан","95701000","город Абакан","95701000","30406011","АО «ГУ ЖКХ»","5116000922","246545001","производство (некомбинированная выработка)+передача+сбыт","WARM"]
[159,"Республика Хакасия","город Абакан","95701000","город Абакан","95701000","26522906","ГУП \"Хакресводоканал\"","1901001202","191001001","производство (некомбинированная выработка)+передача+сбыт","WARM"]
[160,"Республика Хакасия","город Абакан","95701000","город Абакан","95701000","26824651","Красноярская дирекция по тепловодоснабжению","7708503727","246645014","производство (некомбинированная выработка)+передача+сбыт","WARM"]
[161,"Республика Хакасия","город Абакан","95701000","город Абакан","95701000","26354638","МОУ ДОД \"Спорт.оздор. база \"Меридиан\"","1901065679","190101001","производство (некомбинированная выработка)+передача+сбыт","WARM"]
[162,"Республика Хакасия","город Абакан","95701000","город Абакан","95701000","26450581","МП \"Абаканские тепловые сети\"","1901003640","190101001","производство (некомбинированная выработка)+передача+сбыт","WARM"]
[163,"Республика Хакасия","город Абакан","95701000","город Абакан","95701000","26354637","МУП \"Управляющая жилищная компания\" (электробойлерная ул.Мира)","1901069722","190101001","производство (некомбинированная выработка)+сбыт","WARM"]
[164,"Республика Хакасия","город Абакан","95701000","город Абакан","95701000","26358524","Мостоотряд-91 АФ ОАО \"Сибмост\"","5407127899","190102001","производство (некомбинированная выработка)+передача+сбыт","WARM"]
[165,"Республика Хакасия","город Абакан","95701000","город Абакан","95701000","28869185","ООО \"Южно-Сибирская теплосетевая компания\"","1901116531","190101001","производство (некомбинированная выработка)+передача","WARM"]
[166,"Республика Хакасия","город Абакан","95701000","город Абакан","95701000","26571178","Пассажирское вагонное депо Абакан – структурное подразделение Енисейского филиала ОАО «Федеральная пассажирская компания»","7708709686","190145001","производство (некомбинированная выработка)+передача+сбыт","WARM"]
[167,"Республика Хакасия","город Абакан","95701000","город Абакан","95701000","26449407","Свечинский районный телекоммуникационный узел (РТУ) Кировского филиала ОАО \"Волгателеком\"","5260901817","432832002","производство (некомбинированная выработка)+передача+сбыт","WARM"]
[168,"Республика Хакасия","город Абакан","95701000","город Абакан","95701000","26425314","Филиал \"Абаканская ТЭЦ\"  ОАО \"Енисейская ТГК (ТГК-13)\"","1901067718","190103001","Передача+Сбыт","WARM"]
[169,"Республика Хакасия","город Абакан","95701000","город Абакан","95701000","26425314","Филиал \"Абаканская ТЭЦ\"  ОАО \"Енисейская ТГК (ТГК-13)\"","1901067718","190103001","производство комбинированная выработка","WARM"]
[170,"Республика Хакасия","город Абакан","95701000","город Абакан","95701000","27568998","Филиал ОАО \"Ремонтно-эксплуатационное управление\" \"Иркутский\" Хакасия","7714783092","381843001","производство (некомбинированная выработка)+передача+сбыт","WARM"]
[171,"Республика Хакасия","город Саяногорск","95708000","город Саяногорск","95708000","26354640","ИП Басков В.В.","190200321555","190201001","производство (некомбинированная выработка)","WARM"]
[172,"Республика Хакасия","город Саяногорск","95708000","город Саяногорск","95708000","26354643","МУП \"Тепловые сети\"","1902017371","190201003","производство (некомбинированная выработка)+передача+сбыт","WARM"]
[173,"Республика Хакасия","город Саяногорск","95708000","город Саяногорск","95708000","27675852","ОАО \"Мобильные ГТЭС\"","7706627050","190245001","производство комбинированная выработка","WARM"]
[174,"Республика Хакасия","город Саяногорск","95708000","город Саяногорск","95708000","26354645","ОАО \"СШ ТК РусГидро\"","1902018248","190201001","производство (некомбинированная выработка)+передача+сбыт","WARM"]
[175,"Республика Хакасия","город Саяногорск","95708000","город Саяногорск","95708000","26354642","ООО \"Теплоресурс\"","1902015423","190201001","производство (некомбинированная выработка)+передача+сбыт","WARM"]
[176,"Республика Хакасия","город Саяногорск","95708000","город Саяногорск","95708000","28150844","ООО \"Хакасские коммунальные системы\"","1902024682","190201001","производство (некомбинированная выработка)","WARM"]
[177,"Республика Хакасия","город Саяногорск","95708000","город Саяногорск","95708000","27568933","ОП ЗАО \"Байкалэнерго\" - \"Саяногорские тепловые сети\"","3808108339","381201001","производство (некомбинированная выработка)+передача+сбыт","WARM"]
[178,"Республика Хакасия","город Сорск","95709000","город Сорск","95709000","26522906","ГУП \"Хакресводоканал\"","1901001202","191001001","производство (некомбинированная выработка)+передача+сбыт","WARM"]
[179,"Республика Хакасия","город Сорск","95709000","город Сорск","95709000","28975239","МУП \"Коммунальные системы\"","1910013229","191001001","производство (некомбинированная выработка)+передача+сбыт","WARM"]
[180,"Республика Хакасия","город Сорск","95709000","город Сорск","95709000","28873567","ООО \"Горизонт\"","1911008461","191101001","производство (некомбинированная выработка)+передача+сбыт","WARM"]
[181,"Республика Хакасия","город Сорск","95709000","город Сорск","95709000","28422371","ООО \"Хакасресводоканал\"","1910012754","191001001","производство (некомбинированная выработка)+передача+сбыт","WARM"]
[182,"Республика Хакасия","город Черногорск","95715000","город Черногорск","95715000","26522906","ГУП \"Хакресводоканал\"","1901001202","191001001","производство (некомбинированная выработка)+передача+сбыт","WARM"]
[183,"Республика Хакасия","город Черногорск","95715000","город Черногорск","95715000","26354654","ООО \"СУЭК-Хакасия\"","1903017342","190301001","производство (некомбинированная выработка)+передача+сбыт","WARM"]
[184,"Республика Хакасия","город Черногорск","95715000","город Черногорск","95715000","28263400","ООО \"ТеплоРесурс\"","1903021797","190301001","производство (некомбинированная выработка)+передача","WARM"]
[185,"Республика Хакасия","город Черногорск","95715000","город Черногорск","95715000","26354657","ООО \"Тепловые системы\"","1903017744","190301001","производство (некомбинированная выработка)+передача+сбыт","WARM"]
[186,"Республика Хакасия","город Черногорск","95715000","город Черногорск","95715000","26354656","ООО \"Теплосервис\"","1903017751","190301001","производство (некомбинированная выработка)+передача+сбыт","WARM"]
[187,"Республика Хакасия","город Черногорск","95715000","город Черногорск","95715000","26354650","ООО \"ХакТЭК\"","1903013620","190301001","производство (некомбинированная выработка)+передача+сбыт","WARM"]

{"sheet":"modClassifierValidate","index":22,"n_rows":0,"n_cols":0,"rows_kept":0,"hidden":true}

{"sheet":"modHyp","index":23,"n_rows":0,"n_cols":0,"rows_kept":0,"hidden":true}

{"sheet":"modList03","index":24,"n_rows":0,"n_cols":0,"rows_kept":0,"hidden":true}

{"sheet":"modfrmDateChoose","index":25,"n_rows":0,"n_cols":0,"rows_kept":0,"hidden":true}

{"sheet":"modComm","index":26,"n_rows":0,"n_cols":0,"rows_kept":0,"hidden":true}

{"sheet":"modThisWorkbook","index":27,"n_rows":0,"n_cols":0,"rows_kept":0,"hidden":true}

{"sheet":"REESTR_MO","index":28,"n_rows":103,"n_cols":4,"rows_kept":103,"hidden":true}
["№","МР","МО","МО_ОКТМО"]
[1,"Алтайский","Алтайский","95605000"]
[2,"Алтайский","Аршановское","95605405"]
[3,"Алтайский","Белоярское","95605410"]
[4,"Алтайский","Изыхское","95605418"]
[5,"Алтайский","Кировское","95605420"]
[6,"Алтайский","Краснопольское","95605425"]
[7,"Алтайский","Новомихайловское","95605430"]
[8,"Алтайский","Новороссийское","95605435"]
[9,"Алтайский","Очурское","95605440"]
[10,"Алтайский","Подсинское","95605445"]
[11,"Аскизский","Аскизский","95608000"]
[12,"Аскизский","Аскизское","95608405"]
[13,"Аскизский","Базинское","95608410"]
[14,"Аскизский","Балыксинское","95608409"]
[15,"Аскизский","Бельтирское","95608412"]
[16,"Аскизский","Бирикчульское","95608413"]
[17,"Аскизский","Верх-Аскизское","95608415"]
[18,"Аскизский","Есинское","95608420"]
[19,"Аскизский","Кызласское","95608430"]
[20,"Аскизский","Поселок Аскиз","95608151"]
[21,"Аскизский","Поселок Бискамжа","95608165"]
[22,"Аскизский","Поселок Вершина Теи","95608169"]
[23,"Аскизский","Пуланкольское","95608440"]
[24,"Аскизский","Усть-Камыштинское","95608450"]
[25,"Аскизский","Усть-Чульское","95608455"]
[26,"Бейский","Бейский","95612000"]
[27,"Бейский","Бейское","95612405"]
[28,"Бейский","Большемонокское","95612410"]
[29,"Бейский","Бондаревское","95612415"]
[30,"Бейский","Кирбинское","95612425"]
[31,"Бейский","Куйбышевское","95612430"]
[32,"Бейский","Межселенные территории, находящиеся вне границ сельских поселений Бейского района","95612701"]
[33,"Бейский","Новоенисейское","95612440"]
[34,"Бейский","Новотроицкое","95612445"]
[35,"Бейский","Сабинское","95612455"]
[36,"Бейский","Табатское","95612460"]
[37,"Боградский","Боградский","95615000"]
[38,"Боградский","Боградское","95615410"]
[39,"Боградский","Большеербинское","95615415"]
[40,"Боградский","Бородинское","95615420"]
[41,"Боградский","Знаменское","95615430"]
[42,"Боградский","Первомайское","95615440"]
[43,"Боградский","Пушновское","95615445"]
[44,"Боградский","Сарагашское","95615450"]
[45,"Боградский","Советско-Хакасское","95615455"]
[46,"Боградский","Сонское","95615460"]
[47,"Боградский","Троицкое","95615404"]
[48,"Орджоникидзевский","Гайдаровское","95620405"]
[49,"Орджоникидзевский","Копьёвский поссовет","95620403"]
[50,"Орджоникидзевский","Копьёвский сельсовет","95620420"]
[51,"Орджоникидзевский","Красноиюсское","95620425"]
[52,"Орджоникидзевский","Новомарьясовское","95620430"]
[53,"Орджоникидзевский","Орджоникидзевский","95620000"]
[54,"Орджоникидзевский","Приисковое","95620437"]
[55,"Орджоникидзевский","Саралинское","95620440"]
[56,"Орджоникидзевский","Устинкинское","95620450"]
[57,"Орджоникидзевский","с. Орджоникидзевское","95620435"]
[58,"Таштыпский","Анчулское","95625405"]
[59,"Таштыпский","Арбатское","95625408"]
[60,"Таштыпский","Большесейское","95625415"]
[61,"Таштыпский","Бутрахтинское","95625420"]
[62,"Таштыпский","Имекское","95625422"]
[63,"Таштыпский","Матурское","95625425"]
[64,"Таштыпский","Межселенная территория Таштыпского муниципального района, включающая п Кубайка, п Большой Он, п Малый Анзас","95625702"]
[65,"Таштыпский","Нижнесирское","95625430"]
[66,"Таштыпский","Таштыпский","95625000"]
[67,"Таштыпский","Таштыпское","95625440"]
[68,"Усть-Абаканский","Вершино-Биджинское","95630405"]
[69,"Усть-Абаканский","Весенненское","95630410"]
[70,"Усть-Абаканский","Доможаковское","95630415"]
[71,"Усть-Абаканский","Калининское","95630425"]
[72,"Усть-Абаканский","Московское","95630430"]
[73,"Усть-Абаканский","Опытненское","95630435"]
[74,"Усть-Абаканский","Поселок Усть-Абакан","95630151"]
[75,"Усть-Абаканский","Райковское","95630440"]
[76,"Усть-Абаканский","Расцветовское","95630445"]
[77,"Усть-Абаканский","Сапоговское","95630455"]
[78,"Усть-Абаканский","Солнечное","95630460"]
[79,"Усть-Абаканский","Усть-Абаканский","95630000"]
[80,"Усть-Абаканский","Усть-Бюрское","95630465"]
[81,"Усть-Абаканский","Чарковское","95630470"]
[82,"Ширинский","Беренжакское","95635405"]
[83,"Ширинский","Борцовское","95635410"]
[84,"Ширинский","Воротское","95635415"]
[85,"Ширинский","Ефремкинское","95635425"]
[86,"Ширинский","Жемчужненский сельсовет","95635430"]
[87,"Ширинский","Коммунаровский сельсовет","95635401"]
[88,"Ширинский","Селосонское","95635435"]
[89,"Ширинский","Соленоозерное","95635438"]
[90,"Ширинский","Спиринское","95635440"]
[91,"Ширинский","Туимский сельсовет","95635403"]
[92,"Ширинский","Фыркальское","95635450"]
[93,"Ширинский","Целинное","95635455"]
[94,"Ширинский","Черноозерное","95635460"]
[95,"Ширинский","Ширинский","95635000"]
[96,"Ширинский","Ширинский сельсовет","95635404"]
[97,"Ширинский","село Джирим","95635420"]
[98,"город Абаза","город Абаза","95702000"]
[99,"город Абакан","город Абакан","95701000"]
[100,"город Саяногорск","город Саяногорск","95708000"]
[101,"город Сорск","город Сорск","95709000"]
[102,"город Черногорск","город Черногорск","95715000"]

{"sheet":"modfrmReestrMR","index":29,"n_rows":0,"n_cols":0,"rows_kept":0,"hidden":true}

{"sheet":"modfrmCheckUpdates","index":30,"n_rows":0,"n_cols":0,"rows_kept":0,"hidden":true}